bitfinex-derivatives/quotes_SOLF0:USTF0_20250419
["timestamp","ask_amount","ask_price","bid_price","bid_amount"]
[1745086723847,8.93820178,138.78,138.74,7.2089]
[1745086724648,8.93820178,138.78,138.73,16.14750178]
[1745086725147,8.93820178,138.76,138.71,8.93820178]
[1745086725348,8.93820178,138.76,138.71,7.21]
[1745086725948,7.2087,138.75,138.71,7.21]
[1745086730445,8.93820178,138.74,138.69,7.2111]
[1745086730654,8.93820178,138.72,138.66,8.93820178]
[1745086730847,8.93820178,138.68,138.64,37.13820178]
[1745086731049,8.93820178,138.68,138.65,7.2133]
[1745086731547,8.93820178,138.69,138.65,7.2133]
[1745086733252,7.2124,138.68,138.65,7.2133]
[1745086733452,8.93820178,138.69,138.64,7.214]
[1745086733648,8.93820178,138.67,138.62,8.93820178]
[1745086734051,16.15110178,138.67,138.63,7.2144]
[1745086734449,8.93820178,138.67,138.62,8.93820178]
[1745086734653,7.2134,138.66,138.62,8.93820178]
[1745086734949,8.93820178,138.67,138.62,8.93820178]
[1745086735252,16.15110178,138.67,138.63,7.2146]
[1745086735948,8.93820178,138.67,138.64,7.2141]
[1745086736153,28.2,138.68,138.64,8.93820178]
[1745086736852,28.2,138.68,138.65,7.2132]
[1745086737051,28.2,138.68,138.64,8.93820178]
[1745086739157,28.2,138.68,138.65,7.2136]
[1745086739452,28.2,138.68,138.62,13.97060124]
[1745086739752,28.2,138.68,138.66,7.2129]
[1745086742553,28.2,138.68,138.67,7.2126]
[1745086742853,28.2,138.68,138.62,13.97060124]
[1745086743049,28.2,138.68,138.66,7.2129]
[1745086743456,28.2,138.68,138.62,13.97060124]
[1745086744056,28.2,138.68,138.66,7.213]
[1745086744459,28.2,138.68,138.62,13.97060124]
[1745086744757,28.2,138.68,138.67,7.2126]
[1745086744958,37.2151,138.71,138.67,7.2126]
[1745086745155,30.0044,138.71,138.67,7.2126]
[1745086745858,7.2113,138.7,138.67,7.2126]
[1745086746254,7.2113,138.7,138.66,7.2129]
[1745086746760,7.2117,138.69,138.66,7.2129]
[1745086749963,7.2113,138.7,138.66,7.2129]
[1745086750859,7.2113,138.7,138.63,1.858]
[1745086751063,7.2113,138.7,138.67,7.2126]
[1745086756568,7.2113,138.7,138.68,7.2121]
[1745086757069,28.16,138.71,138.64,13.97060124]
[1745086757267,28.16,138.71,138.66,13.97060124]
[1745086757771,28.16,138.71,138.7,7.2111]
[1745086758967,35.3693,138.74,138.66,13.97060124]
[1745086759274,35.3693,138.74,138.7,8.93449932]
[1745086759872,35.3693,138.74,138.71,7.2102]
[1745086760070,28.16,138.74,138.7,8.93449932]
[1745086762174,28.16,138.74,138.72,7.2095]
[1745086762375,28.16,138.74,138.7,8.93449932]
[1745086762575,44.30219932,138.77,138.72,8.93449932]
[1745086762875,28.16,138.77,138.75,7.2084]
[1745086764171,28.16,138.77,138.74,8.93449932]
[1745086764172,37.09449932,138.77,138.73,7.209]
[1745086764377,7.2085,138.75,138.71,8.93449932]
[1745086764980,7.2085,138.75,138.72,7.2097]
[1745086765178,28.16,138.77,138.73,8.93449932]
[1745086765476,28.16,138.77,138.75,7.208]
[1745086766783,28.16,138.77,138.74,7.2087]
[1745086771380,28.16,138.77,138.75,7.2083]
[1745086771786,35.3677,138.77,138.73,8.93449932]
[1745086772378,35.3677,138.77,138.73,16.14369932]
[1745086772883,8.93449932,138.76,138.71,7.2101]
[1745086773486,7.2088,138.75,138.72,7.2099]
[1745086778994,16.14269932,138.76,138.73,7.2095]
[1745086785000,7.2092,138.74,138.72,7.2098]
[1745086785200,8.93449932,138.76,138.72,7.2098]
[1745086785495,8.93449932,138.76,138.7,8.93449932]
[1745086785701,30.1681,138.77,138.73,7.2094]
[1745086785901,39.10259932,138.77,138.73,7.2094]
[1745086786202,8.93449932,138.75,138.69,8.93449932]
[1745086786603,7.2103,138.72,138.69,8.93449932]
[1745086787092,37.05449932,138.73,138.69,8.93449932]
[1745086788302,44.26429932,138.73,138.7,7.211]
[1745086788502,35.3298,138.73,138.7,7.211]
[1745086790204,28.12,138.73,138.71,7.2102]
[1745086790604,28.12,138.73,138.71,8.93449932]
[1745086790805,7.2087,138.75,138.71,8.93449932]
[1745086791408,7.2087,138.75,138.72,7.21]
[1745086791602,7.2087,138.75,138.71,8.93449932]
[1745086792210,7.2087,138.75,138.71,16.14479932]
[1745086793008,7.209,138.74,138.71,16.14479932]
[1745086793208,28.12,138.76,138.72,7.2098]
[1745086793506,35.3282,138.76,138.71,8.93449932]
[1745086793696,35.3282,138.76,138.73,7.2094]
[1745086794506,28.12,138.76,138.74,7.2089]
[1745086794807,28.12,138.76,138.73,8.93449932]
[1745086795007,28.12,138.76,138.71,8.93449932]
[1745086795605,7.2087,138.75,138.72,7.2097]
[1745086797311,35.3283,138.76,138.73,7.2093]
[1745086797506,28.12,138.76,138.71,8.93449932]
[1745086797910,7.2087,138.75,138.72,7.2098]
[1745086798909,35.328,138.76,138.73,7.2094]
[1745086799211,28.12,138.76,138.73,8.93449932]
[1745086800009,28.12,138.76,138.73,7.2092]
[1745086800212,28.12,138.76,138.71,8.93449932]
[1745086800714,7.2088,138.75,138.72,7.2099]
[1745086801011,28.12,138.76,138.73,8.93449932]
[1745086801313,28.12,138.76,138.74,7.2088]
[1745086801908,28.12,138.76,138.73,8.93449932]
[1745086802114,7.2071,138.78,138.75,7.2085]
[1745086803714,38.94109932,138.79,138.76,7.2079]
[1745086803915,35.2867,138.79,138.76,7.2079]
[1745086804415,7.2069,138.78,138.75,16.14269932]
[1745086804812,28.08,138.79,138.75,8.93449932]
[1745086805416,35.2867,138.79,138.76,7.2079]
[1745086805811,28.08,138.79,138.75,8.93449932]
[1745086806110,7.2069,138.78,138.75,16.14249932]
[1745086806314,28.08,138.79,138.75,8.93449932]
[1745086806714,35.2866,138.79,138.76,7.2077]
[1745086808715,7.2066,138.79,138.76,7.2077]
[1745086810418,28.08,138.8,138.77,8.93449932]
[1745086811317,28.08,138.8,138.78,7.2068]
[1745086812520,28.08,138.8,138.79,7.2064]
[1745086812715,7.2051,138.82,138.79,7.2064]
[1745086813018,44.21889932,138.83,138.79,8.93449932]
[1745086813219,35.2844,138.83,138.8,7.2056]
[1745086814415,28.08,138.83,138.81,7.2053]
[1745086814619,28.08,138.83,138.81,8.93449932]
[1745086814820,28.08,138.83,138.82,7.2048]
[1745086815117,28.08,138.86,138.81,8.93449932]
[1745086815518,28.08,138.86,138.82,7.2046]
[1745086816125,7.2038,138.84,138.82,7.2046]
[1745086816419,28.08,138.86,138.82,7.2046]
[1745086817017,7.2034,138.85,138.82,7.2046]
[1745086817416,28.08,138.86,138.82,7.2046]
[1745086817814,7.2034,138.85,138.82,7.2046]
[1745086818919,7.2039,138.84,138.82,7.2046]
[1745086819119,7.2039,138.84,138.81,16.13959932]
[1745086819419,8.93449932,138.85,138.81,8.93449932]
[1745086819621,8.93449932,138.85,138.79,16.14069932]
[1745086820019,7.2051,138.82,138.79,16.14069932]
[1745086820421,8.93449932,138.85,138.79,16.14069932]
[1745086820621,7.2051,138.82,138.79,16.14069932]
[1745086821520,7.2053,138.81,138.79,16.14069932]
[1745086822224,7.2053,138.81,138.79,8.93449932]
[1745086822524,7.2059,138.8,138.79,8.93449932]
[1745086822822,7.2059,138.8,138.77,16.14159932]
[1745086823621,7.2056,138.81,138.78,7.2069]
[1745086824727,7.2051,138.82,138.79,16.14089932]
[1745086824921,8.93449932,138.85,138.79,8.93449932]
[1745086825129,8.93449932,138.81,138.75,37.01449932]
[1745086825427,7.2073,138.78,138.75,8.93449932]
[1745086825627,8.93449932,138.79,138.74,8.93449932]
[1745086825830,7.2072,138.78,138.74,16.14319932]
[1745086829532,7.2075,138.77,138.74,16.14319932]
[1745086830934,7.2071,138.78,138.75,7.2084]
[1745086834135,16.14109932,138.79,138.75,7.2084]
[1745086834737,7.207,138.78,138.75,7.2084]
[1745086835637,16.14129932,138.79,138.74,8.93449932]
[1745086836231,16.14129932,138.79,138.75,7.2081]
[1745086837141,16.14129932,138.79,138.76,7.2079]
[1745086839639,35.2661,138.8,138.77,7.2072]
[1745086839844,28.06,138.8,138.76,8.93449932]
[1745086840244,28.06,138.8,138.78,7.2067]
[1745086842747,28.06,138.8,138.79,7.2064]
[1745086842943,16.13949932,138.82,138.79,7.2064]
[1745086843846,7.2053,138.81,138.79,7.2064]
[1745086844946,7.2053,138.81,138.78,16.14109932]
[1745086845846,8.93449932,138.82,138.76,8.93449932]
[1745086846049,8.93449932,138.8,138.76,8.93449932]
[1745086846845,7.2067,138.79,138.76,16.14219932]
[1745086848347,7.2073,138.78,138.74,7.2088]
[1745086848647,8.93449932,138.78,138.74,7.2088]
[1745086849350,7.2078,138.77,138.74,7.2088]
[1745086852748,7.208,138.76,138.73,16.14379932]
[1745086853850,7.208,138.76,138.73,7.2093]
[1745086854051,7.2088,138.75,138.71,16.14459932]
[1745086856157,7.2088,138.75,138.72,7.2098]
[1745086858158,7.2091,138.74,138.71,16.14499932]
[1745086858360,28.04,138.75,138.7,8.93449932]
[1745086859455,7.2093,138.74,138.71,7.2103]
[1745086859759,28.04,138.75,138.71,7.2103]
[1745086860159,35.2488,138.75,138.71,7.2103]
[1745086860860,7.209,138.74,138.71,7.2103]
[1745086861861,7.209,138.74,138.7,16.14519932]
[1745086862264,7.2096,138.73,138.7,16.14519932]
[1745086864466,28.04,138.75,138.7,8.93449932]
[1745086864969,35.2489,138.75,138.71,7.2103]
[1745086865366,35.2489,138.75,138.7,8.93449932]
[1745086865566,35.2489,138.75,138.72,16.14409932]
[1745086866068,28.04,138.75,138.7,8.93449932]
[1745086866365,8.93449932,138.74,138.69,8.93449932]
[1745086866767,7.21,138.72,138.69,16.14579932]
[1745086870274,7.2106,138.71,138.68,16.14639932]
[1745086872781,7.2111,138.7,138.68,16.14639932]
[1745086872971,7.2111,138.7,138.68,7.2119]
[1745086873275,7.2111,138.7,138.67,7.2124]
[1745086875779,35.2108,138.71,138.68,7.212]
[1745086880382,7.2111,138.7,138.68,7.212]
[1745086881183,7.2111,138.7,138.67,7.2123]
[1745086883184,7.2119,138.69,138.66,16.14739932]
[1745086883483,28.0,138.71,138.64,8.93449932]
[1745086883682,8.93449932,138.69,138.64,8.93449932]
[1745086883982,7.2129,138.67,138.64,16.14839932]
[1745086885691,7.2123,138.68,138.65,7.2136]
[1745086886186,7.2127,138.67,138.64,16.14839932]
[1745086886688,7.2127,138.67,138.64,8.93449932]
[1745086888289,7.2127,138.67,138.65,7.2136]
[1745086888787,7.2124,138.68,138.65,7.2136]
[1745086889389,8.93449932,138.7,138.66,8.93449932]
[1745086889686,28.0,138.71,138.66,8.93449932]
[1745086889890,35.2109,138.71,138.68,7.2118]
[1745086894795,35.2109,138.71,138.69,7.2115]
[1745086894995,28.0,138.71,138.68,8.93449932]
[1745086895197,27.96,138.75,138.7,8.93449932]
[1745086895396,27.96,138.75,138.71,7.21]
[1745086895597,7.2092,138.74,138.72,8.93449932]
[1745086895899,27.96,138.75,138.72,8.93449932]
[1745086896297,27.96,138.75,138.7,8.93449932]
[1745086896501,7.2093,138.74,138.71,7.2103]
[1745086898102,7.2093,138.74,138.72,7.2099]
[1745086898501,7.2093,138.74,138.7,8.93449932]
[1745086898801,7.2093,138.74,138.71,7.2104]
[1745086899403,7.2096,138.73,138.71,7.2104]
[1745086901403,7.2092,138.74,138.71,7.2104]
[1745086902902,7.2095,138.73,138.71,7.2104]
[1745086907303,8.93449932,138.74,138.68,8.93449932]
[1745086907602,12.81049932,138.74,138.68,8.93449932]
[1745086907804,7.2108,138.71,138.68,8.93449932]
[1745086909105,12.81049932,138.74,138.69,7.2115]
[1745086909106,7.2102,138.72,138.69,7.2115]
[1745086916211,7.2102,138.72,138.7,7.2111]
[1745086919415,8.93449932,138.74,138.7,8.93449932]
[1745086919612,27.96,138.75,138.7,8.93449932]
[1745086919915,7.209,138.74,138.72,7.2097]
[1745086920818,27.96,138.75,138.73,7.2091]
[1745086922814,35.1686,138.75,138.73,7.2091]
[1745086923121,27.96,138.75,138.74,7.209]
[1745086924414,35.1685,138.75,138.73,7.2093]
[1745086925015,27.96,138.75,138.73,7.2093]
[1745086941227,27.96,138.75,138.74,7.209]
[1745086941427,50.46405,138.77,138.74,8.93449932]
[1745086942332,50.46405,138.77,138.76,8.93449932]
[1745086943628,50.46405,138.77,138.76,16.14239932]
[1745086946124,50.46405,138.77,138.72,8.93449932]
[1745086946521,7.2082,138.76,138.73,7.2092]
[1745086946826,7.2082,138.76,138.69,27.92]
[1745086946827,8.93449932,138.75,138.69,36.85449932]
[1745086947021,7.2101,138.72,138.69,44.06589932]
[1745086947222,7.2101,138.72,138.69,16.14589932]
[1745086947427,8.93449932,138.75,138.69,8.93449932]
[1745086947727,7.2098,138.73,138.7,7.211]
[1745086950229,7.2092,138.74,138.69,8.93449932]
[1745086950728,7.2095,138.73,138.69,8.93449932]
[1745086952931,7.2101,138.72,138.69,16.14579932]
[1745086953240,8.93449932,138.75,138.69,8.93449932]
[1745086953534,7.2097,138.73,138.69,8.93449932]
[1745086955233,7.2097,138.73,138.7,7.2109]
[1745086955937,8.93449932,138.75,138.69,16.14569932]
[1745086956730,7.21,138.73,138.69,16.14569932]
[1745086957738,7.21,138.73,138.7,7.211]
[1745086959435,7.21,138.72,138.69,16.14599932]
[1745086960739,7.2105,138.71,138.69,8.93449932]
[1745086961132,7.2105,138.71,138.68,7.2119]
[1745086961840,7.2111,138.7,138.68,7.2119]
[1745086962338,8.93449932,138.73,138.68,7.2119]
[1745086962837,7.2103,138.72,138.68,7.2119]
[1745086963037,8.93449932,138.73,138.68,7.2119]
[1745086963334,7.2108,138.71,138.68,7.2119]
[1745086964840,27.88,138.74,138.69,8.93449932]
[1745086965040,27.88,138.74,138.71,8.93449932]
[1745086965347,35.0894,138.74,138.71,16.14499932]
[1745086965739,27.88,138.74,138.71,16.14499932]
[1745086966049,27.88,138.74,138.7,7.2108]
[1745086966243,27.88,138.74,138.69,8.93449932]
[1745086966545,7.2107,138.71,138.69,16.14579932]
[1745086970645,7.2103,138.72,138.69,16.14579932]
[1745086973349,7.2106,138.71,138.69,16.14579932]
[1745086976352,7.2103,138.72,138.69,16.14579932]
[1745086978154,7.2105,138.71,138.69,16.14579932]
[1745086981755,8.93449932,138.73,138.69,8.93449932]
[1745086982052,8.93449932,138.73,138.68,7.2119]
[1745086982357,7.2111,138.7,138.68,7.2119]
[1745086984856,7.2111,138.7,138.67,16.14689932]
[1745086988657,7.2111,138.7,138.68,7.212]
[1745086988955,7.2111,138.7,138.67,8.93449932]
[1745086989455,7.2118,138.69,138.67,8.93449932]
[1745086989658,8.93449932,138.73,138.67,8.93449932]
[1745086989961,7.2113,138.7,138.67,16.14689932]
[1745086994459,8.93449932,138.73,138.67,16.14689932]
[1745086994960,7.2114,138.7,138.67,16.14689932]
[1745087003269,7.2114,138.7,138.68,7.2121]
[1745087003971,7.2108,138.71,138.68,7.2121]
[1745087005071,10.87179932,138.73,138.68,7.2121]
[1745087005072,7.2111,138.7,138.68,7.2121]
[1745087006574,7.2108,138.71,138.68,7.2121]
[1745087006775,10.87179932,138.73,138.68,7.2121]
[1745087006975,27.84,138.72,138.68,7.2121]
[1745087007174,7.2109,138.71,138.68,7.2121]
[1745087007973,7.2111,138.7,138.68,7.2121]
[1745087010077,27.84,138.72,138.67,8.93449932]
[1745087010571,27.84,138.72,138.63,27.84]
[1745087010778,8.93449932,138.71,138.65,8.93449932]
[1745087011177,7.2115,138.7,138.65,8.93449932]
[1745087011575,8.93449932,138.71,138.65,8.93449932]
[1745087011878,7.2116,138.69,138.66,7.2127]
[1745087012180,7.2116,138.69,138.63,36.77449932]
[1745087013278,7.2116,138.69,138.67,7.2125]
[1745087013981,7.2113,138.7,138.67,7.2125]
[1745087015581,7.2116,138.69,138.67,7.2125]
[1745087016081,7.2125,138.68,138.63,36.77449932]
[1745087016278,27.8,138.68,138.62,1.9441]
[1745087016980,7.2129,138.67,138.64,7.2137]
[1745087018081,8.93449932,138.67,138.63,7.2145]
[1745087018582,7.2134,138.66,138.63,7.2145]
[1745087019081,8.93449932,138.67,138.64,7.2142]
[1745087019281,16.14739932,138.67,138.64,7.2142]
[1745087020879,7.2132,138.66,138.63,7.2145]
[1745087023182,8.93449932,138.67,138.62,7.215]
[1745087023183,7.214,138.65,138.62,7.215]
[1745087023384,8.93449932,138.65,138.6,27.8]
[1745087023684,7.215,138.63,138.6,7.2162]
[1745087025087,7.2154,138.62,138.59,16.15109932]
[1745087025288,8.93449932,138.63,138.58,1.9888]
[1745087025489,8.93449932,138.61,138.56,10.96219932]
[1745087025888,16.15049932,138.61,138.57,7.2176]
[1745087026287,8.93449932,138.61,138.57,7.2176]
[1745087027184,8.93449932,138.61,138.56,7.2181]
[1745087027786,8.93449932,138.61,138.57,7.2177]
[1745087028193,16.15039932,138.61,138.57,7.2177]
[1745087028489,14.73839932,138.63,138.58,7.217]
[1745087028691,7.2154,138.62,138.58,16.15149932]
[1745087029494,36.73449932,138.64,138.54,31.5375]
[1745087029693,36.73449932,138.64,138.58,8.93449932]
[1745087030194,43.94889932,138.64,138.6,7.2158]
[1745087030795,43.94889932,138.64,138.61,7.2157]
[1745087030987,7.2147,138.63,138.61,7.2157]
[1745087031393,7.2147,138.63,138.6,7.216]
[1745087032195,7.2147,138.63,138.58,8.93449932]
[1745087032196,8.93449932,138.62,138.59,7.2166]
[1745087032394,8.93449932,138.62,138.57,8.93449932]
[1745087032896,16.14999932,138.62,138.59,7.2165]
[1745087033095,36.73449932,138.64,138.57,8.93449932]
[1745087033294,27.8,138.64,138.59,8.93449932]
[1745087033494,35.0145,138.64,138.61,7.2154]
[1745087033686,27.8,138.64,138.61,7.2154]
[1745087034487,7.2151,138.63,138.6,7.216]
[1745087034884,16.14959932,138.63,138.6,7.216]
[1745087035293,7.2153,138.62,138.6,7.216]
[1745087035597,8.93449932,138.63,138.6,7.216]
[1745087035796,16.14949932,138.63,138.6,7.216]
[1745087037799,7.2152,138.62,138.6,7.216]
[1745087040693,8.93449932,138.61,138.56,8.93449932]
[1745087041494,7.2163,138.6,138.57,7.2176]
[1745087044803,16.15039932,138.61,138.58,7.217]
[1745087045213,8.93449932,138.61,138.56,8.93449932]
[1745087045401,8.93449932,138.63,138.58,8.93449932]
[1745087046101,16.14929932,138.63,138.6,7.216]
[1745087046597,7.2153,138.62,138.6,7.216]
[1745087049100,16.14929932,138.63,138.6,7.216]
[1745087050401,7.2152,138.62,138.6,7.216]
[1745087053107,7.2152,138.62,138.59,7.2165]
[1745087053297,8.93449932,138.62,138.57,10.94859932]
[1745087053503,8.93449932,138.62,138.56,27.82]
[1745087053504,8.93449932,138.6,138.56,27.82]
[1745087053705,8.93449932,138.6,138.54,12.67199932]
[1745087053706,36.71449932,138.6,138.54,12.67199932]
[1745087054009,7.217,138.59,138.56,7.2181]
[1745087054500,43.93089932,138.6,138.57,7.2177]
[1745087055108,43.93089932,138.6,138.56,7.2181]
[1745087055707,43.93089932,138.6,138.57,7.2178]
[1745087056113,7.2168,138.59,138.54,12.67199932]
[1745087056809,7.2168,138.59,138.57,7.2177]
[1745087058111,43.93089932,138.6,138.57,7.2177]
[1745087059411,27.78,138.6,138.56,8.93449932]
[1745087059609,36.71449932,138.63,138.58,8.93449932]
[1745087060005,36.71449932,138.63,138.62,7.2152]
[1745087060210,36.71449932,138.63,138.58,8.93449932]
[1745087060410,36.71449932,138.63,138.61,7.2155]
[1745087061013,36.71449932,138.63,138.62,7.2152]
[1745087061310,43.92959932,138.63,138.58,8.93449932]
[1745087061712,36.71449932,138.63,138.61,7.2153]
[1745087062009,27.78,138.65,138.58,8.93449932]
[1745087062205,27.78,138.65,138.62,8.93449932]
[1745087062506,27.78,138.65,138.63,7.2147]
[1745087063411,27.78,138.65,138.64,7.2142]
[1745087064222,27.78,138.65,138.63,7.2144]
[1745087065317,27.78,138.65,138.64,7.2142]
[1745087067824,605.9923,138.68,138.65,7.2135]
[1745087069324,598.78,138.68,138.66,7.213]
[1745087069724,27.76,138.68,138.66,7.213]
[1745087070620,27.76,138.68,138.67,7.2126]
[1745087074125,27.76,138.68,138.66,7.2129]
[1745087075427,27.76,138.68,138.67,7.2126]
[1745087078531,27.76,138.68,138.65,8.93449932]
[1745087078724,36.69449932,138.68,138.63,8.93449932]
[1745087080330,7.2131,138.67,138.64,7.2141]
[1745087080832,7.2131,138.67,138.63,16.14899932]
[1745087081025,7.2133,138.66,138.62,8.93449932]
[1745087081227,8.93449932,138.66,138.6,8.93449932]
[1745087081533,16.14889932,138.64,138.6,7.2161]
[1745087081828,43.86889932,138.64,138.6,7.2161]
[1745087083131,7.2149,138.63,138.6,7.2161]
[1745087091632,7.2148,138.63,138.6,7.2161]
[1745087095435,7.2148,138.63,138.61,7.2157]
[1745087097036,7.2148,138.63,138.6,7.216]
[1745087097237,7.2148,138.63,138.59,8.93449932]
[1745087097536,7.2148,138.63,138.6,7.2162]
[1745087097738,7.2148,138.63,138.59,8.93449932]
[1745087098037,7.2148,138.63,138.6,7.2159]
[1745087100542,7.2148,138.63,138.61,7.2156]
[1745087103343,7.2148,138.63,138.6,7.216]
[1745087108145,7.2148,138.63,138.61,7.2156]
[1745087108342,27.7,138.67,138.61,8.93449932]
[1745087108548,571.22,138.69,138.65,8.93449932]
[1745087108744,7.2123,138.68,138.65,16.14789932]
[1745087109649,578.4318,138.69,138.65,8.93449932]
[1745087109848,36.63449932,138.7,138.65,8.93449932]
[1745087111250,7.2118,138.69,138.66,7.2129]
[1745087113846,7.2121,138.68,138.66,7.2129]
[1745087114851,7.2121,138.68,138.65,16.14799932]
[1745087115052,7.2131,138.66,138.62,10.86449932]
[1745087115551,7.2131,138.66,138.63,7.2144]
[1745087115755,7.2139,138.65,138.62,10.86449932]
[1745087116052,36.61449932,138.66,138.61,7.2154]
[1745087116451,7.2144,138.64,138.61,7.2154]
[1745087116751,36.61449932,138.66,138.62,16.14969932]
[1745087116952,7.214,138.65,138.62,16.14969932]
[1745087117552,43.82789932,138.66,138.63,7.2145]
[1745087117853,36.61449932,138.66,138.62,8.93449932]
[1745087118052,36.61449932,138.66,138.59,27.68]
[1745087118255,7.2138,138.65,138.62,16.14949932]
[1745087118549,7.2138,138.65,138.62,7.215]
[1745087118852,7.2138,138.65,138.62,16.14949932]
[1745087119554,7.2142,138.64,138.61,16.15019932]
[1745087120453,7.2142,138.64,138.62,7.2152]
[1745087120953,7.2142,138.64,138.61,16.14999932]
[1745087121252,8.93449932,138.64,138.57,10.97399932]
[1745087121753,16.15019932,138.62,138.58,7.2169]
[1745087122054,43.83019932,138.62,138.58,7.2169]
[1745087123556,43.83019932,138.62,138.59,7.2168]
[1745087126660,27.68,138.62,138.6,7.2162]
[1745087126959,7.2149,138.63,138.6,7.2162]
[1745087128163,7.2144,138.64,138.6,7.2162]
[1745087128357,7.2144,138.64,138.61,16.15019932]
[1745087128559,27.68,138.65,138.61,8.93449932]
[1745087129465,34.894,138.65,138.62,7.2151]
[1745087133669,27.68,138.65,138.63,7.2144]
[1745087134363,7.2128,138.67,138.64,7.2142]
[1745087134669,36.63449932,138.68,138.63,8.93449932]
[1745087134967,7.2132,138.66,138.63,16.14889932]
[1745087138071,8.93449932,138.66,138.61,8.93449932]
[1745087138272,8.93449932,138.64,138.59,8.93449932]
[1745087138772,16.14889932,138.64,138.61,7.2154]
[1745087139873,16.14889932,138.64,138.59,8.93449932]
[1745087140371,16.14889932,138.64,138.61,7.2153]
[1745087140572,27.7,138.68,138.61,8.93449932]
[1745087140868,36.63449932,138.68,138.63,8.93449932]
[1745087141071,7.2129,138.67,138.64,7.2139]
[1745087141570,8.93449932,138.66,138.62,8.93449932]
[1745087142072,7.2143,138.64,138.61,16.14989932]
[1745087143674,7.2143,138.64,138.62,7.2152]
[1745087146776,7.2143,138.64,138.61,16.15009932]
[1745087150479,8.93449932,138.64,138.6,7.216]
[1745087151176,7.2155,138.62,138.6,7.216]
[1745087152583,7.215,138.63,138.6,7.216]
[1745087153388,7.2153,138.62,138.6,7.216]
[1745087154784,7.2158,138.61,138.59,7.2165]
[1745087155275,7.2154,138.62,138.59,7.2165]
[1745087158787,7.2154,138.62,138.6,7.2162]
[1745087160693,7.2149,138.63,138.6,7.2162]
[1745087160988,7.2149,138.63,138.58,8.93449932]
[1745087161790,7.2149,138.63,138.6,7.2158]
[1745087162089,7.2144,138.64,138.6,8.93449932]
[1745087162691,7.2156,138.62,138.57,31.6849]
[1745087162891,36.59449932,138.65,138.59,8.93449932]
[1745087163292,7.2144,138.64,138.62,7.2151]
[1745087163694,36.59449932,138.65,138.59,8.93449932]
[1745087164391,7.215,138.63,138.6,7.2162]
[1745087164793,7.2155,138.62,138.6,7.2162]
[1745087166594,7.2155,138.62,138.59,7.2165]
[1745087166794,7.216,138.61,138.57,10.97399932]
[1745087166991,36.59449932,138.61,138.56,8.93449932]
[1745087167295,7.2169,138.59,138.56,16.15259932]
[1745087169693,36.59449932,138.61,138.56,8.93449932]
[1745087169900,8.93449932,138.59,138.55,7.2186]
[1745087170102,8.93449932,138.59,138.54,2.0442]
[1745087170600,7.2176,138.58,138.54,9.2632]
[1745087170802,7.2176,138.58,138.54,18.19769932]
[1745087171401,7.2176,138.58,138.55,7.2188]
[1745087171703,7.2178,138.57,138.55,7.2188]
[1745087172202,7.2175,138.58,138.55,7.2188]
[1745087174007,36.59449932,138.61,138.56,8.93449932]
[1745087174505,7.2165,138.6,138.57,7.2175]
[1745087176105,43.81049932,138.61,138.58,7.217]
[1745087176296,34.876,138.61,138.58,7.217]
[1745087176500,27.66,138.61,138.58,7.217]
[1745087176906,36.59449932,138.61,138.58,7.217]
[1745087177506,7.2165,138.6,138.57,7.2175]
[1745087177707,7.2165,138.6,138.56,8.93449932]
[1745087178205,7.2165,138.6,138.57,7.2175]
[1745087179911,7.2172,138.59,138.56,16.15259932]
[1745087180311,36.59449932,138.61,138.56,8.93449932]
[1745087180608,7.2165,138.6,138.57,7.2174]
[1745087181209,7.2169,138.59,138.57,7.2174]
[1745087181411,7.2169,138.59,138.56,16.15269932]
[1745087183816,27.66,138.61,138.58,8.93449932]
[1745087184516,38.59059932,138.64,138.58,8.93449932]
[1745087185518,7.216,138.61,138.58,16.15149932]